bitfinex/quotes_ETHUSD_20240927
["timestamp","ask_amount","ask_price","bid_price","bid_amount"]
[1727403486443,0.04445292,2631.6,2631.3,0.7674]
[1727403486639,0.04445292,2631.6,2631.4,0.266765]
[1727403486828,4.89986,2631.8,2631.4,0.266765]
[1727403487140,4.89986,2631.8,2631.3,0.7674]
[1727403487340,0.04430097,2631.7,2631.3,0.7674]
[1727403487509,4.89986,2631.8,2631.3,0.7674]
[1727403487707,0.04430097,2631.7,2631.3,0.7674]
[1727403487901,4.89986,2631.8,2631.3,0.7674]
[1727403488108,0.04448958,2631.7,2631.3,0.7674]
[1727403488310,4.89986,2631.8,2631.3,0.7674]
[1727403488526,0.04447914,2631.7,2631.3,0.7674]
[1727403488711,4.89986,2631.8,2631.3,1.0417649]
[1727403488916,0.04449629,2631.7,2631.3,1.0417649]
[1727403489205,4.89986,2631.8,2631.3,1.0417649]
[1727403489418,0.04445632,2631.6,2631.3,1.0417649]
[1727403489744,0.04440021,2631.5,2631.3,1.0417649]
[1727403489943,4.89986,2631.8,2631.3,0.7674]
[1727403490239,0.04448013,2631.7,2631.3,0.7674]
[1727403490606,6.52623413,2631.8,2631.3,0.7674]
[1727403490806,0.04447248,2631.6,2631.3,0.7674]
[1727403491138,0.0444268,2631.5,2631.3,0.7674]
[1727403491436,6.52623413,2631.8,2631.3,0.7674]
[1727403491639,0.04438683,2631.4,2631.3,0.7674]
[1727403491845,6.52623413,2631.8,2631.3,1.034165]
[1727403492046,0.04435452,2631.4,2631.3,0.7674]
[1727403492240,6.52623413,2631.8,2631.3,0.7674]
[1727403492412,0.04436496,2631.4,2631.3,0.7674]
[1727403492612,6.52623413,2631.8,2631.3,0.7674]
[1727403493224,0.04448486,2631.7,2631.3,0.7674]
[1727403493628,6.52623413,2631.8,2631.3,0.7674]
[1727403493831,0.04444489,2631.6,2631.3,0.7674]
[1727403494037,0.04450101,2631.7,2631.3,0.7674]
[1727403494240,0.04442108,2631.5,2631.3,0.7674]
[1727403494414,6.52623413,2631.8,2631.3,1.034161]
[1727403494616,0.04438111,2631.4,2631.3,0.7674]
[1727403494822,1.62637413,2631.6,2631.3,0.7674]
[1727403495351,0.04443723,2631.5,2631.3,0.7674]
[1727403496438,1.90031,2631.2,2630.9,0.8009]
[1727403496745,1.67062389,2631.1,2630.9,0.8009]
[1727403498127,3.57097389,2631.1,2630.7,8.1792175]
[1727403498329,4.36287389,2631.1,2630.7,8.1792175]
[1727403498531,1.62637413,2630.9,2630.7,0.8392175]
[1727403498733,1.62637413,2630.9,2630.7,0.0383175]
[1727403498734,0.83579525,2630.8,2630.7,0.0383175]
[1727403498931,2.73635525,2630.8,2630.7,0.0383175]
[1727403499338,5.73635525,2630.8,2630.7,0.0383175]
[1727403499617,6.89971275,2630.8,2630.7,0.0383175]
[1727403509261,7.29648089,2630.8,2630.7,0.0383175]
[1727403511362,6.89971275,2630.8,2630.7,0.0383175]
[1727403511855,7.29651357,2630.8,2630.7,0.0383175]
[1727403512032,6.89971275,2630.8,2630.7,0.0383175]
[1727403514458,7.2965403,2630.8,2630.7,0.0383175]
[1727403515236,8.92291443,2630.8,2630.7,0.0383175]
[1727403515453,8.52608688,2630.8,2630.7,0.0383175]
[1727403517974,6.89971275,2630.8,2630.7,0.0383175]
[1727403518150,8.52608688,2630.8,2630.7,0.0383175]
[1727403522375,8.923092,2630.8,2630.7,0.0383175]
[1727403525556,8.52608688,2630.8,2630.7,0.0383175]
[1727403527468,8.92309021,2630.8,2630.7,0.0383175]
[1727403539571,11.28592227,2630.8,2630.7,0.0383175]
[1727403540493,8.92309021,2630.8,2630.7,0.0383175]
[1727403540695,11.28842447,2630.8,2630.7,0.0383175]
[1727403541499,8.92309021,2630.8,2630.7,0.0383175]
[1727403542510,11.68453449,2630.8,2630.7,0.0383175]
[1727403543107,8.92309021,2630.8,2630.7,0.0383175]
[1727403543322,11.68453449,2630.8,2630.7,0.0383175]
[1727403543887,8.92309021,2630.8,2630.7,0.0383175]
[1727403544483,10.89835684,2630.8,2630.7,0.0383175]
[1727403544882,10.89840383,2630.8,2630.7,0.0383175]
[1727403545102,10.5014005,2630.8,2630.7,0.0383175]
[1727403546995,7.73418688,2630.8,2630.7,0.0383175]
[1727403547196,9.73418688,2630.8,2630.7,0.0383175]
[1727403547402,10.50348688,2630.8,2630.7,0.0383175]
[1727403547998,10.90063014,2630.8,2630.7,0.0383175]
[1727403548490,14.16955831,2630.8,2630.7,0.0383175]
[1727403548684,10.90063014,2630.8,2630.7,0.0383175]
[1727403550433,14.16959724,2630.8,2630.7,0.0383175]
[1727403550932,10.90063014,2630.8,2630.7,0.0383175]
[1727403551094,14.16959724,2630.8,2630.7,0.0383175]
[1727403551289,10.90063014,2630.8,2630.7,0.0383175]
[1727403552403,14.16978707,2630.8,2630.7,0.0383175]
[1727403552837,10.90063014,2630.8,2630.7,0.0383175]
[1727403553140,14.16978707,2630.8,2630.7,0.0383175]
[1727403554804,14.16978707,2630.8,2629.9,0.8042175]
[1727403554805,6.52751413,2630.0,2629.9,0.8042175]
[1727403555002,8.94164281,2630.0,2629.9,0.8042175]
[1727403555335,6.56955907,2630.0,2629.9,0.0383175]
[1727403555625,8.94162712,2630.0,2629.9,0.0383175]
[1727403557328,6.56955907,2630.0,2629.9,0.0383175]
[1727403557505,8.9400439,2630.0,2629.9,0.0383175]
[1727403557829,6.56955907,2630.0,2629.9,0.0383175]
[1727403559424,7.65367046,2630.0,2629.9,0.0383175]
[1727403559643,10.02415529,2630.0,2629.9,0.0383175]
[1727403559954,7.65367046,2630.0,2629.9,0.0383175]
[1727403560165,10.02415529,2630.0,2629.9,0.0383175]
[1727403560457,11.64013851,2630.0,2629.9,0.0383175]
[1727403561063,11.24383609,2630.0,2629.9,0.0383175]
[1727403561417,11.63857611,2630.0,2629.9,0.0383175]
[1727403561837,10.01132448,2630.0,2629.9,0.0383175]
[1727403562046,11.63769861,2630.0,2629.9,0.0383175]
[1727403562620,8.87462804,2630.0,2629.9,0.0383175]
[1727403563465,7.24825391,2630.0,2629.9,0.0383175]
[1727403563752,6.42365391,2630.0,2629.9,0.0383175]
[1727403563963,3.56955907,2630.0,2629.9,0.8042175]
[1727403565422,6.56955907,2630.0,2629.9,0.8042175]
[1727403570759,6.56955907,2630.0,2629.9,0.0383175]
[1727403571052,7.65335001,2630.0,2629.9,0.0383175]
[1727403571621,10.02372405,2630.0,2629.9,0.0383175]
[1727403572559,7.65335001,2630.0,2629.9,0.0383175]
[1727403572722,10.02372405,2630.0,2629.9,0.0383175]
[1727403573122,7.65335001,2630.0,2629.9,0.0383175]
[1727403574530,10.02372405,2630.0,2629.9,0.0383175]
[1727403575936,7.65335001,2630.0,2629.9,0.0383175]
[1727403577439,10.02322972,2630.0,2629.9,0.0383175]
[1727403577640,7.65335001,2630.0,2629.9,0.0383175]
[1727403578937,10.02322972,2630.0,2629.9,0.0383175]
[1727403579160,8.04957111,2630.0,2629.9,0.0383175]
[1727403580070,10.41893747,2630.0,2629.9,0.0383175]
[1727403580560,8.04957111,2630.0,2629.9,0.0383175]
[1727403595261,10.81507296,2630.0,2629.9,0.0383175]
[1727403596071,10.81681372,2630.0,2629.9,0.0383175]
[1727403597217,10.81681372,2630.0,2629.1,0.0383175]
[1727403597218,4.9015,2629.5,2629.4,0.8054]
[1727403597377,8.89981564,2629.5,2629.4,0.8054]
[1727403599086,6.99831564,2629.5,2629.2,0.8054]
[1727403599287,3.52801413,2629.3,2629.2,0.8054]
[1727403599492,6.52801413,2629.3,2629.2,0.8054]
[1727403599699,7.60816669,2629.3,2629.2,0.8054]
[1727403601318,1.90171,2629.2,2629.1,0.0383175]
[1727403601480,4.90171,2629.2,2629.1,0.0383175]
[1727403604121,4.94233523,2629.2,2629.1,0.0383175]
[1727403604692,3.04062523,2629.2,2629.1,0.8437175]
[1727403604899,4.94233523,2629.2,2629.1,0.8437175]
[1727403611301,5.78937017,2629.2,2629.1,0.0383175]
[1727403611826,7.78937017,2629.2,2629.1,0.0383175]
[1727403611984,8.54817017,2629.2,2629.1,0.0383175]
[1727403612397,8.94421816,2629.2,2629.1,0.0383175]
[1727403613824,10.57059229,2629.2,2629.1,0.0383175]
[1727403614224,8.94421816,2629.2,2629.1,0.0383175]
[1727403614421,10.57059229,2629.2,2629.1,0.0383175]
[1727403615505,8.94421816,2629.2,2629.1,0.0383175]
[1727403615700,9.4157443,2629.2,2629.1,0.0383175]
[1727403616418,7.4157443,2629.2,2629.1,0.0383175]
[1727403621632,9.78856832,2629.2,2629.1,0.0383175]
[1727403622126,12.94279607,2629.2,2629.1,0.0383175]
[1727403622440,13.33826032,2629.2,2629.1,0.0383175]
[1727403622727,10.57059071,2629.2,2629.1,0.0383175]
[1727403623094,13.33839686,2629.2,2629.1,0.0383175]
[1727403625402,13.90848544,2629.2,2629.1,0.0383175]
[1727403626900,11.1400079,2629.2,2629.1,0.0383175]
[1727403627127,13.90956379,2629.2,2629.1,0.0383175]
[1727403627838,1.90229,2628.4,2628.3,0.8275175]
[1727403628043,3.52866413,2628.4,2628.3,0.8275175]
[1727403628346,6.56837621,2628.4,2628.3,0.0383175]
[1727403628505,8.04301633,2628.4,2628.3,0.0383175]
[1727403631916,8.09058149,2628.4,2628.3,0.0383175]
[1727403633208,8.48677287,2628.4,2628.3,0.0383175]
[1727403634917,8.09058149,2628.4,2628.3,0.0383175]
[1727403637955,4.98956724,2628.4,2628.3,0.8275175]
[1727403638121,6.61594137,2628.4,2628.3,0.8275175]
[1727403639155,6.61594137,2628.4,2628.3,0.0383175]
[1727403644436,4.98956724,2628.4,2628.3,0.0383175]
[1727403644757,6.61594137,2628.4,2628.3,0.0383175]
[1727403648256,6.61594137,2628.4,2628.3,0.8275175]
[1727403649329,4.98956724,2628.4,2628.3,0.8275175]
[1727403658736,3.08727724,2628.4,2628.3,0.8275175]
[1727403659238,4.98956724,2628.4,2628.3,0.8275175]
[1727403662356,4.98956724,2628.4,2628.3,0.0383175]
[1727403662563,6.07940274,2628.4,2628.3,0.0383175]
[1727403662767,1.98956724,2628.4,2628.3,0.8428175]
[1727403664357,4.98956724,2628.4,2628.3,0.8428175]
[1727403664947,3.08727724,2628.4,2628.3,0.8428175]
[1727403665188,0.08727724,2628.4,2628.3,0.8428175]
[1727403665353,0.08727724,2628.4,2628.3,1.11734925]
[1727403665672,1.90229,2628.4,2628.3,0.8428175]
[1727403666040,3.52862413,2628.5,2628.3,0.8428175]
[1727403666696,0.08713663,2628.4,2628.3,0.8428175]
[1727403667580,1.98942663,2628.4,2628.3,0.8428175]
[1727403668352,0.08713663,2628.4,2628.3,0.8428175]
[1727403669552,2.07331464,2628.4,2628.3,0.8428175]
[1727403670040,0.08713663,2628.4,2628.3,0.8428175]
[1727403670878,2.07331464,2628.4,2628.3,0.8428175]
[1727403671281,0.08713663,2628.4,2628.3,0.8428175]
[1727403672683,2.07331464,2628.4,2628.3,0.8428175]
[1727403672981,3.97560464,2628.4,2628.3,0.8428175]
[1727403673593,1.98942663,2628.4,2628.3,0.8428175]
[1727403674584,0.08713663,2628.4,2628.3,0.8428175]
[1727403675164,2.07331464,2628.4,2628.3,0.8428175]
[1727403675367,0.08713663,2628.4,2628.3,0.8428175]
[1727403675889,3.97560464,2628.4,2628.3,0.8428175]
[1727403676249,1.98942663,2628.4,2628.3,0.8428175]
[1727403676454,3.97560464,2628.4,2628.3,0.8428175]
[1727403676657,1.98942663,2628.4,2628.3,0.0383175]
[1727403676892,2.07331464,2628.4,2628.3,0.0383175]
[1727403677187,0.08713663,2628.4,2628.3,0.0383175]
[1727403677561,0.08713663,2628.4,2628.3,0.7909175]
[1727403682585,2.07309939,2628.4,2628.3,0.7909175]
[1727403682910,0.08713663,2628.4,2628.3,0.7909175]
[1727403684095,0.08713663,2628.4,2628.3,3.16048228]
[1727403684297,2.38315531,2629.0,2628.3,3.16048228]
[1727403684298,1.98596276,2628.8,2628.4,0.7526]
[1727403684502,1.98596276,2628.8,2628.5,0.7526]
[1727403684804,0.08738134,2628.7,2628.5,0.7526]
[1727403684969,0.08738134,2628.7,2628.5,1.06863723]
[1727403685170,3.88798276,2628.8,2628.5,0.7526]
[1727403685788,1.98596276,2628.8,2628.5,0.7526]
[1727403685992,1.98596276,2628.7,2628.5,0.7526]
[1727403686370,1.98596276,2628.8,2628.5,0.7526]
[1727403686571,1.98596276,2628.7,2628.5,0.7526]
[1727403687490,1.98596276,2628.6,2628.3,0.8513175]
[1727403687690,1.62637413,2628.5,2628.3,0.8513175]
[1727403688067,0.08742931,2628.4,2628.3,0.8513175]
[1727403688305,2.07339207,2628.4,2628.3,0.0383175]
[1727403688871,3.97568207,2628.4,2628.3,0.0383175]
[1727403689110,2.97846246,2628.4,2628.3,0.0383175]
[1727403692720,6.79956246,2628.4,2628.3,0.0383175]
[1727403693070,7.19424117,2628.4,2628.3,0.0383175]
[1727403694508,9.58023829,2628.4,2628.3,0.0383175]
[1727403697211,6.79956246,2628.4,2628.3,0.0383175]
[1727403697791,9.58023829,2628.4,2628.3,0.0383175]
[1727403698005,6.79956246,2628.4,2628.3,0.0383175]
[1727403698173,9.57950805,2628.4,2628.3,0.0383175]
[1727403699681,6.79956246,2628.4,2628.3,0.0383175]
[1727403707020,9.57754188,2628.4,2628.3,0.0383175]
[1727403707221,9.97226847,2628.4,2628.3,0.0383175]
[1727403707399,8.82066318,2628.4,2628.3,0.0383175]
[1727403708120,8.42593659,2628.4,2628.3,0.0383175]
[1727403710142,10.80530023,2628.4,2628.3,0.0383175]
[1727403710442,8.42593659,2628.4,2628.3,0.0383175]
[1727403710620,10.80528914,2628.4,2628.3,0.0383175]
[1727403710931,8.42593659,2628.4,2628.3,0.0383175]
[1727403712133,10.80541987,2628.4,2628.3,0.0383175]
[1727403712991,8.42593659,2628.4,2628.3,0.0383175]
[1727403713897,10.80560972,2628.4,2628.3,0.0383175]
[1727403715122,8.42593659,2628.4,2628.3,0.0383175]
[1727403716138,10.80613571,2628.4,2628.3,0.0383175]
[1727403716499,10.80626539,2628.4,2628.3,0.0383175]
[1727403716698,10.80625024,2628.4,2628.3,0.0383175]
[1727403716934,10.80623998,2628.4,2628.3,0.0383175]
[1727403717136,8.42593659,2628.4,2628.3,0.0383175]
[1727403723137,8.82053129,2628.4,2628.3,0.0383175]
[1727403726560,11.59722476,2628.4,2628.3,0.0383175]
[1727403727418,9.97085063,2628.4,2628.3,0.0383175]
[1727403727619,11.59722476,2628.4,2628.3,0.0383175]
[1727403731260,8.82053129,2628.4,2628.3,0.0383175]
[1727403732074,12.10333516,2628.4,2628.3,0.0383175]
[1727403733152,7.19415716,2628.4,2628.3,0.0383175]
[1727403733337,8.16535428,2628.4,2628.3,0.0383175]
[1727403733539,6.61609344,2628.4,2628.3,0.0383175]
[1727403734359,7.01102494,2628.4,2628.3,0.0383175]
[1727403734859,6.61609344,2628.4,2628.3,0.0383175]
[1727403735270,7.01102506,2628.4,2628.3,0.0383175]
[1727403735562,9.02802924,2628.4,2628.3,0.0383175]
[1727403735767,12.31382596,2628.4,2628.3,0.0383175]
[1727403736430,12.31503518,2628.4,2628.3,0.0383175]
[1727403736853,9.02802924,2628.4,2628.3,0.0383175]
[1727403737062,12.31503518,2628.4,2628.3,0.0383175]
[1727403737364,12.31567766,2628.4,2628.3,0.0383175]
[1727403737563,9.02802924,2628.4,2628.3,0.0383175]
[1727403737965,12.31567897,2628.4,2628.3,0.0383175]
[1727403738171,9.02802924,2628.4,2628.3,0.0383175]
[1727403739347,12.3165441,2628.4,2628.3,0.0383175]
[1727403739677,9.02802924,2628.4,2628.3,0.0383175]
[1727403740678,12.31664488,2628.4,2628.3,0.0383175]
[1727403741098,9.89317075,2628.4,2628.3,0.0383175]
[1727403741248,7.01102506,2628.4,2628.3,0.0383175]
[1727403742784,10.29953955,2628.4,2628.3,0.0383175]
[1727403742955,7.01102506,2628.4,2628.3,0.0383175]
[1727403743344,10.29953955,2628.4,2628.3,0.0383175]
[1727403743544,7.01102506,2628.4,2628.3,0.0383175]
[1727403744390,10.29953955,2628.4,2628.3,0.0383175]
[1727403744680,7.01102506,2628.4,2628.3,0.0383175]
[1727403745176,8.51091101,2628.4,2628.3,0.0383175]
[1727403746296,5.16877093,2628.4,2628.3,0.0383175]
[1727403746459,0.08742931,2628.4,2628.3,0.8444175]
[1727403746780,0.08742931,2628.4,2628.3,2.7467875]
[1727403746982,4.28881048,2628.8,2628.3,1.9406875]
[1727403747188,2.38680048,2628.8,2628.5,0.8061]
[1727403747417,4.01317461,2629.0,2628.6,0.8061]
[1727403747627,1.90193,2628.9,2628.8,0.8061]
[1727403748123,4.28873048,2628.9,2628.8,0.8061]
[1727403748493,4.90193,2628.9,2628.8,0.8061]
[1727403750305,4.98368485,2628.9,2628.8,0.8061]
[1727403751593,3.08175485,2628.9,2628.8,0.8061]
[1727403752530,0.08175485,2628.9,2628.8,0.8061]
[1727403753983,1.90173,2629.2,2628.8,0.8061]
[1727403754181,0.08214018,2629.1,2628.8,0.8061]
[1727403754629,0.08214018,2629.1,2628.8,0.88217116]
[1727403754808,3.52803413,2629.3,2628.8,0.8061]
[1727403755020,3.52803413,2629.3,2628.7,1.90206]
[1727403755021,3.52803413,2629.3,2629.0,0.8061]
[1727403755232,4.90172,2629.2,2629.0,0.8061]
[1727403755418,3.0,2629.2,2629.0,0.8061]
[1727403755809,4.90173,2629.2,2629.0,0.8061]
[1727403756219,3.52816413,2629.1,2629.0,0.8061]
[1727403757507,3.60956681,2629.1,2629.0,0.8061]
[1727403762334,1.90208,2628.7,2628.1,8.1461]
[1727403762531,3.8159,2629.0,2628.1,8.1461]
[1727403762532,4.90229,2628.4,2628.1,8.1461]
[1727403762726,4.90229,2628.4,2628.1,0.8061]
[1727403763040,4.98360567,2628.4,2628.1,0.8061]
[1727403767635,4.98360567,2628.4,2627.6,7.34081055]
[1727403767846,5.79950567,2628.4,2627.6,8.14691055]
[1727403768024,7.16041953,2628.4,2627.6,8.14691055]
[1727403769856,7.72983672,2628.4,2628.3,0.0399175]
[1727403770267,7.16041953,2628.4,2628.3,0.0399175]
[1727403772628,10.69215924,2628.4,2628.3,0.0399175]
[1727403772960,11.08747963,2628.4,2628.3,0.0399175]
[1727403781332,13.4631933,2628.4,2628.3,0.0399175]
[1727403781859,11.08747963,2628.4,2628.3,0.0399175]
[1727403782626,13.4631933,2628.4,2628.3,0.0399175]
[1727403782832,13.46314272,2628.4,2628.3,0.0399175]
[1727403783073,1.9028,2627.7,2627.6,0.00081055]
[1727403783374,8.43453971,2627.7,2627.6,0.00081055]
[1727403785299,8.51334061,2627.7,2627.6,0.00081055]
[1727403786497,4.9816009,2627.7,2627.6,0.00081055]
[1727403786683,8.51334061,2627.7,2627.6,0.00081055]
[1727403789197,3.61054061,2627.7,2627.6,0.82841055]
[1727403789705,0.0788009,2627.7,2627.6,0.82841055]
[1727403790053,3.53173971,2627.8,2627.6,0.82841055]
[1727403790753,4.90267,2627.9,2627.6,0.82841055]
[1727403791596,1.90275,2627.8,2627.6,0.82841055]
[1727403791953,4.90275,2627.8,2627.6,0.82841055]
[1727403792156,1.90275,2627.8,2627.6,0.82841055]
[1727403792587,1.9028,2627.7,2627.6,0.82841055]
[1727403792790,4.98157038,2627.7,2627.6,0.82841055]
[1727403792952,4.98157038,2627.7,2627.6,0.00081055]
[1727403797898,4.90287,2627.6,2627.5,0.0383175]
[1727403798057,3.0,2627.6,2627.5,0.0383175]
[1727403798258,4.98150053,2627.6,2627.5,0.0383175]
[1727403800002,8.51324024,2627.6,2627.5,0.0383175]
[1727403803932,10.78009778,2627.6,2627.5,0.0383175]
[1727403804430,8.88015184,2627.6,2627.5,0.0383175]
[1727403804934,11.25387255,2627.6,2627.5,0.0383175]
[1727403805122,8.88015184,2627.6,2627.5,0.0383175]
[1727403805330,8.88015184,2627.6,2625.9,0.0383175]
[1727403805331,2.17359377,2626.6,2625.9,0.0383175]
[1727403805494,1.63179377,2626.2,2625.9,0.0383175]
[1727403805695,1.63179377,2626.0,2625.9,0.0383175]
[1727403805935,1.63179377,2626.2,2625.9,0.0383175]
[1727403806233,1.63179377,2626.0,2625.9,0.0383175]
[1727403806540,1.9039,2626.2,2625.9,0.0383175]
[1727403808649,4.90388,2626.3,2625.9,0.0383175]
[1727403808650,1.90398,2626.1,2625.9,0.0383175]
[1727403809157,0.07689819,2626.0,2625.9,0.0383175]
[1727403809512,1.90389,2626.2,2625.9,0.0383175]
[1727403809712,0.07689819,2626.0,2625.9,0.0383175]
[1727403809943,1.90388,2626.3,2626.0,0.8326]
[1727403811550,1.90396,2626.1,2626.0,0.8326]
[1727403812529,1.90396,2626.1,2625.9,0.0383175]
[1727403812714,1.98024693,2626.1,2625.9,0.0383175]
[1727403814662,1.90403,2626.0,2625.9,0.0383175]
[1727403815157,1.98026859,2626.0,2625.9,0.0383175]
[1727403817853,0.07623859,2626.0,2625.9,0.0383175]
[1727403818058,1.90401,2626.1,2625.9,0.0383175]
[1727403818233,0.07620264,2626.0,2625.9,0.0383175]
[1727403819127,1.98023264,2626.0,2625.9,0.0383175]
[1727403819324,0.07620264,2626.0,2625.9,0.0383175]
[1727403819657,1.90391,2626.2,2625.9,0.0383175]
[1727403819864,0.07620264,2626.0,2625.9,0.0383175]
[1727403820067,4.90391,2626.2,2625.9,0.0383175]
[1727403820366,0.07615663,2626.0,2625.9,0.0383175]
[1727403820518,1.90391,2626.2,2625.9,0.0383175]
[1727403820722,0.07618538,2626.0,2625.9,0.0383175]
[1727403820918,1.90391,2626.2,2625.9,0.0383175]
[1727403821154,0.07614087,2626.0,2625.9,0.0383175]
[1727403821361,1.90391,2626.2,2625.9,0.0383175]
[1727403821559,0.0757843,2626.0,2625.9,0.0383175]
[1727403821717,1.90391,2626.2,2625.9,0.0383175]
[1727403821925,0.0757843,2626.0,2625.9,0.0383175]
[1727403822221,0.07579435,2626.0,2625.9,0.0383175]
[1727403822417,4.90376,2626.4,2625.9,0.0383175]
[1727403822639,0.07591925,2626.3,2625.9,0.31582925]
[1727403823355,1.97974925,2626.3,2625.9,0.31582925]
[1727403823565,1.97974925,2626.3,2625.9,0.0383175]
[1727403827090,0.07591925,2626.3,2626.0,0.8326]
[1727403827445,1.90379,2626.4,2626.0,0.8326]
[1727403827667,0.0759293,2626.3,2626.0,0.8326]
[1727403827887,1.9797593,2626.3,2626.0,1.11010375]
[1727403828191,1.9797593,2626.3,2626.0,0.8326]
[1727403828741,3.53765657,2626.2,2625.9,0.0383175]
[1727403829054,1.90403,2626.0,2625.9,0.0383175]
[1727403830995,1.97973659,2626.0,2625.9,0.0383175]
[1727403832482,5.72186991,2626.0,2625.9,0.0383175]
[1727403834204,1.97973659,2626.0,2625.9,0.0383175]
[1727403834564,9.31039316,2626.0,2625.9,0.0383175]
[1727403836597,8.51739316,2626.0,2625.9,0.0383175]
[1727403843481,0.07570659,2626.0,2625.9,0.0383175]
[1727403843680,4.97973659,2626.0,2625.9,0.0383175]
[1727403847991,1.97973659,2626.0,2625.9,0.0383175]
[1727403849385,3.9603892,2626.0,2625.9,0.0383175]
[1727403849588,4.97973659,2626.0,2625.9,0.0383175]
[1727403850178,5.37752926,2626.0,2625.9,0.0383175]
[1727403850394,7.35818187,2626.0,2625.9,0.0383175]
[1727403850727,0.47349926,2626.0,2625.9,0.7942175]
[1727403852115,2.46022256,2626.0,2625.9,0.7942175]
[1727403852422,0.47349926,2626.0,2625.9,0.7942175]
[1727403853201,0.47349926,2626.0,2625.9,1.06405525]
[1727403854678,2.37752926,2626.0,2625.9,0.7942175]
[1727403854925,4.36444419,2626.0,2625.9,0.0383175]
[1727403855282,2.46041419,2626.0,2625.9,0.0383175]
[1727403856280,5.20259133,2626.0,2625.9,0.0383175]
[1727403856711,3.2156764,2626.0,2625.9,0.0383175]
[1727403857021,2.37752926,2626.0,2625.9,0.0383175]
[1727403857219,0.47349926,2626.0,2625.9,0.0383175]
[1727403857386,0.47349926,2626.0,2625.9,0.7942175]
[1727403865419,0.47349926,2626.0,2625.9,0.0383175]
[1727403866232,2.46045955,2626.0,2625.9,0.0383175]
[1727403867432,2.37752926,2626.0,2625.9,0.0383175]
[1727403867596,4.36460456,2626.0,2625.9,0.0383175]
[1727403867798,4.36454704,2626.0,2625.9,0.0383175]
[1727403868233,2.37752926,2626.0,2625.9,0.0383175]
[1727403868430,3.47652959,2626.0,2625.9,0.0383175]
[1727403869101,5.86088194,2626.0,2625.9,0.0383175]
[1727403870345,0.47349926,2626.0,2625.9,0.0383175]
[1727403872129,2.46078257,2626.0,2625.9,0.8011175]
[1727403872335,0.47349926,2626.0,2625.9,0.8011175]
[1727403873147,0.47349926,2626.0,2625.9,1.9424175]
[1727403873348,0.47349926,2626.0,2625.9,0.0383175]
[1727403876313,0.47349926,2626.0,2625.9,0.30884925]
[1727403876949,0.47349926,2626.0,2625.9,3.05190525]
[1727403877449,0.47349926,2626.0,2625.9,2.97574925]
[1727403881258,0.47349926,2626.0,2625.9,4.60819371]
[1727403882361,0.47349926,2626.0,2625.9,4.68434183]
[1727403882543,0.07570659,2626.0,2625.9,4.68434183]
[1727403882917,1.98648338,2626.6,2626.0,2.66678]
[1727403883120,0.07416373,2626.5,2626.1,2.36742108]
[1727403884823,0.07416373,2626.5,2626.1,2.36742116]
[1727403885051,0.07416373,2626.5,2626.1,2.29127664]
[1727403885257,0.07416373,2626.5,2626.2,0.49580566]
[1727403886056,0.07416373,2626.5,2626.3,0.7628]
[1727403886358,1.98595989,2626.6,2626.3,0.7628]
[1727403886561,0.06926728,2626.4,2626.3,0.7628]
[1727403886859,2.77225989,2626.7,2626.3,1.24229301]
[1727403887634,1.98595989,2626.7,2626.3,1.24229301]
[1727403887938,0.0693438,2626.6,2626.3,1.24229301]
[1727403889167,0.0693438,2626.6,2626.3,3.14610301]
[1727403889374,0.0693438,2626.6,2626.3,1.24229301]
[1727403889747,0.0693438,2626.6,2626.4,0.36419787]
[1727403890928,0.0693438,2626.6,2626.5,1.63244446]
[1727403891431,4.98595989,2626.9,2626.5,1.63244446]
[1727403891659,0.06706935,2626.8,2626.5,1.63244446]
[1727403892268,0.06706935,2626.8,2626.6,0.7628]
[1727403892432,0.06706935,2626.8,2626.7,0.42988645]
[1727403892630,1.98595989,2627.2,2626.7,4.0419339]
[1727403892854,0.7863,2627.3,2626.7,4.0419339]
[1727403892855,0.06483349,2626.8,2626.7,2.74240299]
[1727403893170,0.06435544,2626.8,2626.7,2.74240299]
[1727403893371,0.06435544,2626.8,2626.7,3.20699829]
[1727403893680,4.67535989,2627.3,2626.7,3.20699829]
[1727403893831,1.90321,2627.2,2626.7,1.2273953]
[1727403894043,1.90321,2627.2,2626.7,2.85983976]
[1727403895081,0.06532187,2627.1,2626.7,2.85983976]
[1727403896395,0.06532187,2627.1,2626.7,3.1308953]
[1727403896882,4.67536989,2627.3,2626.7,3.1308953]
[1727403897089,0.06545605,2627.2,2626.7,3.1308953]
[1727403897586,0.06545605,2627.2,2626.7,1.2273953]
[1727403898283,1.96863605,2627.2,2626.7,1.2273953]
[1727403899658,3.60108051,2627.2,2626.7,1.2273953]
[1727403899982,3.60108051,2627.2,2626.7,0.7628]
[1727403900856,1.69790051,2627.2,2626.7,2.6663]
[1727403902878,4.90326,2627.1,2626.3,1.90378]
[1727403903086,4.90326,2627.1,2626.4,2.70074]
[1727403903087,4.33599446,2627.0,2626.4,2.70074]
[1727403903291,4.40145668,2627.0,2626.4,2.70074]
[1727403903786,4.40145668,2627.0,2626.4,3.161192]
[1727403903984,4.40145668,2627.0,2626.4,2.70074]
[1727403904187,4.40145668,2627.0,2626.3,1.9038]
[1727403904188,1.63244446,2626.8,2626.3,1.9038]
[1727403904389,1.63244446,2626.8,2626.1,2.70092]
[1727403904556,2.43264446,2626.6,2626.1,0.797]
[1727403905074,0.06476216,2626.5,2626.1,0.797]
[1727403905277,3.53619446,2626.4,2625.9,0.8353175]
[1727403905486,0.06476216,2626.5,2625.9,0.0383175]
[1727403905487,2.43264446,2626.2,2625.9,0.0383175]
[1727403905794,5.70423,2626.0,2625.9,0.0383175]
[1727403905997,7.33667446,2626.0,2625.9,0.0383175]
[1727403906291,7.40053244,2626.0,2625.9,0.0383175]
[1727403906586,10.51068229,2626.0,2625.9,0.0383175]
[1727403906788,8.52913538,2626.0,2625.9,0.0383175]
[1727403907150,10.50841878,2626.0,2625.9,0.0383175]
[1727403907347,8.52913538,2626.0,2625.9,0.0383175]
[1727403907594,10.50805531,2626.0,2625.9,0.0383175]
[1727403907772,8.52913538,2626.0,2625.9,0.0383175]
[1727403907980,8.52913538,2626.0,2625.1,0.0383175]
[1727403907982,1.90461,2625.2,2625.1,0.0383175]
[1727403908177,7.33725446,2625.2,2625.1,0.0383175]
[1727403908372,9.30901003,2625.2,2625.1,0.0383175]
[1727403909990,0.06322465,2625.2,2625.1,0.0383175]
[1727403910310,1.90454,2625.3,2625.1,0.0383175]
[1727403910474,0.06186909,2625.2,2625.1,0.0383175]
[1727403910675,1.90454,2625.3,2625.1,0.0383175]
[1727403910875,0.06188636,2625.2,2625.1,0.0383175]
[1727403911097,7.03088694,2625.5,2625.1,0.0383175]
[1727403911297,0.06244514,2625.4,2625.1,0.0383175]
[1727403914913,1.96692514,2625.4,2625.1,0.0383175]
[1727403915916,0.06244514,2625.4,2625.1,0.0383175]
[1727403916995,2.3983866,2626.3,2625.3,0.7836]
[1727403916996,1.90407,2626.0,2625.3,0.7836]
[1727403917195,4.90416,2625.9,2625.3,0.7836]